[Event "December 19 Early 2023"]
[Site "https://www.chess.com"]
[Date "2023.12.19"]
[Round "2"]
[White "Liyanage, Ranindu Dilshan"]
[Black "Senft, Sean"]
[Result "1-0"]
[Board "90"]
[TimeControl "180+1"]
[WhiteFideId "9915834"]
[BlackFideId "2044960"]
[WhiteElo "2198"]
[BlackElo "2005"]
[WhiteTeam "SRI"]
[BlackTeam "USA"]
[WhiteClock "0:00:29"]
[BlackClock "0:01:06"]

1. Nf3 {[%clk 0:02:51]}  d5 {[%clk 0:03:00]} 2. c4 {[%clk 0:02:50]}  c6 {[%clk 0:03:00]} 3. e3 {[%clk 0:02:50]}  Nf6 {[%clk 0:03:00]} 4. Nc3 {[%clk 0:02:50]}  a6 {[%clk 0:03:01]} 5. b3 {[%clk 0:02:32]}  Bf5 {[%clk 0:03:00]} 6. Bb2 {[%clk 0:02:32]}  e6 {[%clk 0:03:00]} 7. Nh4 {[%clk 0:02:29]}  Be4 {[%clk 0:02:59]} 8. Nxe4 {[%clk 0:02:12]}  Nxe4 {[%clk 0:02:56]} 9. Nf3 {[%clk 0:02:11]}  Nd7 {[%clk 0:02:49]} 10. Be2 {[%clk 0:02:08]}  Bd6 {[%clk 0:02:45]} 11. O-O {[%clk 0:02:04]}  O-O {[%clk 0:02:39]} 12. Qc2 {[%clk 0:01:58]}  Ng5 {[%clk 0:02:18]} 13. Nxg5 {[%clk 0:01:52]}  Qxg5 {[%clk 0:02:19]} 14. f4 {[%clk 0:01:52]}  Qg6 {[%clk 0:02:05]} 15. Bd3 {[%clk 0:01:42]}  f5 {[%clk 0:02:05]} 16. Rf3 {[%clk 0:01:33]}  Nf6 {[%clk 0:01:57]} 17. Rg3 {[%clk 0:01:17]}  Qf7 {[%clk 0:01:57]} 18. Be2 {[%clk 0:01:15]}  Be7 {[%clk 0:01:52]} 19. Rf1 {[%clk 0:01:13]}  g6 {[%clk 0:01:51]} 20. Qc3 {[%clk 0:01:12]}  Rfe8 {[%clk 0:01:43]} 21. Rh3 {[%clk 0:01:04]}  Bf8 {[%clk 0:01:42]} 22. Qxf6 {[%clk 0:01:00]}  Qxf6 {[%clk 0:01:27]} 23. Bxf6 {[%clk 0:01:01]}  Bg7 {[%clk 0:01:28]} 24. Bxg7 {[%clk 0:00:59]}  Kxg7 {[%clk 0:01:29]} 25. cxd5 {[%clk 0:00:54]}  exd5 {[%clk 0:01:27]} 26. g4 {[%clk 0:00:51]}  fxg4 {[%clk 0:01:26]} 27. Bxg4 {[%clk 0:00:50]}  d4 {[%clk 0:01:26]} 28. f5 {[%clk 0:00:50]}  dxe3 {[%clk 0:01:25]} 29. Rxe3 {[%clk 0:00:50]}  Rxe3 {[%clk 0:01:24]} 30. dxe3 {[%clk 0:00:51]}  Re8 {[%clk 0:01:23]} 31. f6+ {[%clk 0:00:51]}  Kf8 {[%clk 0:01:24]} 32. Rd1 {[%clk 0:00:49]}  Rxe3 {[%clk 0:01:23]} 33. Rd7 {[%clk 0:00:46]}  Re4 {[%clk 0:01:23]} 34. Bh3 {[%clk 0:00:36]}  Rf4 {[%clk 0:01:12]} 35. Rxh7 {[%clk 0:00:31]}  b5 {[%clk 0:01:07]} 36. f7 {[%clk 0:00:30]}  Rxf7 {[%clk 0:01:06]} 37. Rxf7+ {[%clk 0:00:30]}  Kxf7 {[%clk 0:01:06]} 38. Bc8 {[%clk 0:00:30]}  a5 {[%clk 0:01:06]} 39. Bd7 {[%clk 0:00:31]}  b4 {[%clk 0:01:05]} 40. Bxc6 {[%clk 0:00:31]}  Ke7 {[%clk 0:01:04]} 41. Kf2 {[%clk 0:00:31]}  Kd6 {[%clk 0:01:04]} 42. Be4 {[%clk 0:00:31]}  g5 {[%clk 0:01:05]} 43. Ke3 {[%clk 0:00:31]}  Ke5 {[%clk 0:01:06]} 44. Bc2 {[%clk 0:00:32]}  g4 {[%clk 0:01:05]} 45. Bd1 {[%clk 0:00:32]}  Kf5 {[%clk 0:01:05]} 46. Kf2 {[%clk 0:00:29]}  Kf4 {[%clk 0:01:05]} 47. Be2 {[%clk 0:00:30]}  Ke5 {[%clk 0:01:02]} 48. Bxg4 {[%clk 0:00:28]}  Kd4 {[%clk 0:01:03]} 49. Be6 {[%clk 0:00:27]}  Kc3 {[%clk 0:01:04]} 50. h4 {[%clk 0:00:27]}  Kb2 {[%clk 0:01:05]} 51. h5 {[%clk 0:00:28]}  Kxa2 {[%clk 0:01:06]} 52. h6 {[%clk 0:00:28]}  a4 {[%clk 0:01:07]} 53. bxa4+ {[%clk 0:00:29]}  b3 {[%clk 0:01:06]} 54. Bxb3+ {[%clk 0:00:29]} 1-0

[Event "December 19 Early 2023"]
[Site "https://www.chess.com"]
[Date "2023.12.19"]
[Round "2"]
[White "Chojnacki, Slawomir"]
[Black "Krysa, Leandro"]
[Result "1-0"]
[Board "91"]
[TimeControl "180+1"]
[WhiteFideId "1117076"]
[BlackFideId "116807"]
[WhiteElo "2129"]
[BlackElo "2495"]
[WhiteTeam "POL"]
[BlackTeam "ARG"]
[WhiteClock "0:01:10"]
[BlackClock "0:00:01"]

1. d4 {[%clk 0:03:00]}  Nf6 {[%clk 0:02:59]} 2. Bf4 {[%clk 0:02:59]}  g6 {[%clk 0:02:58]} 3. e3 {[%clk 0:02:59]}  Bg7 {[%clk 0:02:57]} 4. c3 {[%clk 0:02:59]}  O-O {[%clk 0:02:56]} 5. Nd2 {[%clk 0:02:59]}  d6 {[%clk 0:02:53]} 6. Ngf3 {[%clk 0:02:58]}  Nc6 {[%clk 0:02:50]} 7. Bc4 {[%clk 0:02:59]}  Nd7 {[%clk 0:02:46]} 8. Bg5 {[%clk 0:02:55]}  Qe8 {[%clk 0:02:43]} 9. O-O {[%clk 0:02:46]}  h6 {[%clk 0:02:42]} 10. Bh4 {[%clk 0:02:44]}  e5 {[%clk 0:02:42]} 11. dxe5 {[%clk 0:02:42]}  dxe5 {[%clk 0:02:40]} 12. h3 {[%clk 0:02:40]}  a5 {[%clk 0:02:37]} 13. a3 {[%clk 0:02:39]}  Kh7 {[%clk 0:02:33]} 14. Qc2 {[%clk 0:02:37]}  f5 {[%clk 0:02:30]} 15. Bg3 {[%clk 0:02:33]}  e4 {[%clk 0:02:23]} 16. Nd4 {[%clk 0:02:32]}  Nde5 {[%clk 0:02:17]} 17. Nxc6 {[%clk 0:02:28]}  Qxc6 {[%clk 0:02:11]} 18. Bxe5 {[%clk 0:02:27]}  Bxe5 {[%clk 0:02:11]} 19. Ba2 {[%clk 0:02:25]}  a4 {[%clk 0:02:06]} 20. Rad1 {[%clk 0:02:21]}  Be6 {[%clk 0:01:57]} 21. Bxe6 {[%clk 0:02:19]}  Qxe6 {[%clk 0:01:58]} 22. Rfe1 {[%clk 0:02:09]}  h5 {[%clk 0:01:56]} 23. Nf1 {[%clk 0:02:09]}  b5 {[%clk 0:01:45]} 24. Rd2 {[%clk 0:02:09]}  Rfd8 {[%clk 0:01:42]} 25. Red1 {[%clk 0:02:10]}  Rxd2 {[%clk 0:01:40]} 26. Qxd2 {[%clk 0:02:10]}  Bd6 {[%clk 0:01:34]} 27. Ng3 {[%clk 0:02:05]}  Rd8 {[%clk 0:01:24]} 28. Qe2 {[%clk 0:02:05]}  h4 {[%clk 0:01:18]} 29. Nf1 {[%clk 0:02:04]}  Qc4 {[%clk 0:01:12]} 30. Qxc4 {[%clk 0:01:56]}  bxc4 {[%clk 0:01:12]} 31. Rd2 {[%clk 0:01:55]}  Kg7 {[%clk 0:01:04]} 32. g3 {[%clk 0:01:55]}  hxg3 {[%clk 0:00:55]} 33. fxg3 {[%clk 0:01:55]}  Kf6 {[%clk 0:00:54]} 34. Kg2 {[%clk 0:01:56]}  Ke6 {[%clk 0:00:52]} 35. g4 {[%clk 0:01:49]}  Rh8 {[%clk 0:00:46]} 36. Rd4 {[%clk 0:01:45]}  Rh4 {[%clk 0:00:35]} 37. gxf5+ {[%clk 0:01:44]}  gxf5 {[%clk 0:00:32]} 38. Rxc4 {[%clk 0:01:43]}  f4 {[%clk 0:00:21]} 39. exf4 {[%clk 0:01:38]}  Rxf4 {[%clk 0:00:16]} 40. Rxa4 {[%clk 0:01:37]}  Bc5 {[%clk 0:00:12]} 41. Ng3 {[%clk 0:01:26]}  Rf2+ {[%clk 0:00:10]} 42. Kh1 {[%clk 0:01:27]}  e3 {[%clk 0:00:09]} 43. Ne4 {[%clk 0:01:18]}  Rf1+ {[%clk 0:00:08]} 44. Kg2 {[%clk 0:01:19]}  e2 {[%clk 0:00:05]} 45. Nxc5+ {[%clk 0:01:19]}  Kf6 {[%clk 0:00:01]} 46. Re4 {[%clk 0:01:20]}  e1=Q {[%clk 0:00:01]} 47. Rxe1 {[%clk 0:01:20]}  Rxe1 {[%clk 0:00:02]} 48. Nd3 {[%clk 0:01:20]}  Re2+ {[%clk 0:00:02]} 49. Kf3 {[%clk 0:01:20]}  Rd2 {[%clk 0:00:02]} 50. Ke3 {[%clk 0:01:20]}  Rh2 {[%clk 0:00:03]} 51. Kd4 {[%clk 0:01:18]}  Rxh3 {[%clk 0:00:02]} 52. b4 {[%clk 0:01:19]}  Ke7 {[%clk 0:00:02]} 53. a4 {[%clk 0:01:18]}  Kd8 {[%clk 0:00:03]} 54. Kc4 {[%clk 0:01:18]}  Kc8 {[%clk 0:00:04]} 55. a5 {[%clk 0:01:19]}  Kb7 {[%clk 0:00:05]} 56. Nc5+ {[%clk 0:01:17]}  Kb8 {[%clk 0:00:04]} 57. Nb3 {[%clk 0:01:17]}  Kb7 {[%clk 0:00:04]} 58. Nd4 {[%clk 0:01:17]}  Rh4 {[%clk 0:00:04]} 59. b5 {[%clk 0:01:17]}  Rh5 {[%clk 0:00:05]} 60. Kb4 {[%clk 0:01:17]}  Ka7 {[%clk 0:00:05]} 61. c4 {[%clk 0:01:18]}  Kb7 {[%clk 0:00:06]} 62. Nb3 {[%clk 0:01:18]}  Rh4 {[%clk 0:00:06]} 63. a6+ {[%clk 0:01:18]}  Ka7 {[%clk 0:00:06]} 64. Na5 {[%clk 0:01:19]}  Rg4 {[%clk 0:00:04]} 65. Nc6+ {[%clk 0:01:19]}  Kb6 {[%clk 0:00:04]} 66. Ne7 {[%clk 0:01:18]}  c5+ {[%clk 0:00:02]} 67. Kb3 {[%clk 0:01:14]}  Rg1 {[%clk 0:00:02]} 68. Nd5+ {[%clk 0:01:11]}  Ka7 {[%clk 0:00:02]} 69. Ne7 {[%clk 0:01:09]}  Rb1+ {[%clk 0:00:02]} 70. Kc2 {[%clk 0:01:09]}  Rb4 {[%clk 0:00:02]} 71. Nc6+ {[%clk 0:01:09]}  Kb6 {[%clk 0:00:02]} 72. Nxb4 {[%clk 0:01:09]}  cxb4 {[%clk 0:00:01]} 73. Kb3 {[%clk 0:01:10]} 1-0

[Event "December 19 Early 2023"]
[Site "https://www.chess.com"]
[Date "2023.12.19"]
[Round "2"]
[White "Koellner, Ruben Gideon"]
[Black "Smolka, Marcin"]
[Result "0-1"]
[Board "92"]
[TimeControl "180+1"]
[WhiteFideId "12993093"]
[BlackFideId "1139681"]
[WhiteElo "2347"]
[BlackElo "2117"]
[WhiteTeam "GER"]
[BlackTeam "POL"]
[WhiteClock "0:00:00"]
[BlackClock "0:00:25"]

1. d4 {[%clk 0:03:00]}  d5 {[%clk 0:02:59]} 2. Nf3 {[%clk 0:02:57]}  Nf6 {[%clk 0:02:58]} 3. Nbd2 {[%clk 0:02:56]}  e6 {[%clk 0:02:48]} 4. e3 {[%clk 0:02:56]}  a6 {[%clk 0:02:47]} 5. Bd3 {[%clk 0:02:56]}  Bd6 {[%clk 0:02:46]} 6. O-O {[%clk 0:02:56]}  c5 {[%clk 0:02:47]} 7. c3 {[%clk 0:02:56]}  O-O {[%clk 0:02:45]} 8. dxc5 {[%clk 0:02:53]}  Bxc5 {[%clk 0:02:45]} 9. b4 {[%clk 0:02:53]}  Ba7 {[%clk 0:02:40]} 10. Bb2 {[%clk 0:02:53]}  Nc6 {[%clk 0:02:39]} 11. a3 {[%clk 0:02:53]}  e5 {[%clk 0:02:29]} 12. e4 {[%clk 0:02:52]}  d4 {[%clk 0:02:27]} 13. cxd4 {[%clk 0:02:36]}  Nxd4 {[%clk 0:02:01]} 14. Nxe5 {[%clk 0:02:33]}  Qc7 {[%clk 0:01:55]} 15. Nef3 {[%clk 0:02:30]}  Rd8 {[%clk 0:01:52]} 16. Nxd4 {[%clk 0:02:18]}  Bxd4 {[%clk 0:01:52]} 17. Bxd4 {[%clk 0:02:19]}  Rxd4 {[%clk 0:01:53]} 18. Nf3 {[%clk 0:02:19]}  Bg4 {[%clk 0:01:49]} 19. e5 {[%clk 0:02:14]}  Bxf3 {[%clk 0:01:30]} 20. Qxf3 {[%clk 0:02:10]}  Qxe5 {[%clk 0:01:19]} 21. Qxb7 {[%clk 0:02:09]}  Rad8 {[%clk 0:01:19]} 22. Bxa6 {[%clk 0:02:07]}  Rh4 {[%clk 0:01:16]} 23. g3 {[%clk 0:02:05]}  Re4 {[%clk 0:01:10]} 24. Rad1 {[%clk 0:02:04]}  Rb8 {[%clk 0:01:06]} 25. Qc6 {[%clk 0:01:53]}  Re8 {[%clk 0:01:03]} 26. Bb7 {[%clk 0:01:46]}  Qh5 {[%clk 0:01:00]} 27. Qc5 {[%clk 0:01:11]}  R4e5 {[%clk 0:00:58]} 28. Qc6 {[%clk 0:01:05]}  Re4 {[%clk 0:00:57]} 29. Qxe4 {[%clk 0:00:40]}  Nxe4 {[%clk 0:00:53]} 30. Bxe4 {[%clk 0:00:40]}  g5 {[%clk 0:00:52]} 31. Bg2 {[%clk 0:00:40]}  g4 {[%clk 0:00:52]} 32. a4 {[%clk 0:00:35]}  Re6 {[%clk 0:00:52]} 33. b5 {[%clk 0:00:32]}  Rh6 {[%clk 0:00:52]} 34. Rd8+ {[%clk 0:00:20]}  Kg7 {[%clk 0:00:52]} 35. Rfd1 {[%clk 0:00:21]}  Qxh2+ {[%clk 0:00:51]} 36. Kf1 {[%clk 0:00:21]}  Qh5 {[%clk 0:00:49]} 37. R8d5 {[%clk 0:00:15]}  Qg6 {[%clk 0:00:48]} 38. Rd6 {[%clk 0:00:15]}  Qc2 {[%clk 0:00:48]} 39. R6d2 {[%clk 0:00:14]}  Qc4+ {[%clk 0:00:48]} 40. Kg1 {[%clk 0:00:13]}  Qxa4 {[%clk 0:00:49]} 41. Bc6 {[%clk 0:00:12]}  Qb4 {[%clk 0:00:47]} 42. Rd4 {[%clk 0:00:12]}  Qb3 {[%clk 0:00:37]} 43. Rxg4+ {[%clk 0:00:12]}  Rg6 {[%clk 0:00:35]} 44. Rxg6+ {[%clk 0:00:12]}  hxg6 {[%clk 0:00:36]} 45. Re1 {[%clk 0:00:12]}  Kf6 {[%clk 0:00:36]} 46. Re3 {[%clk 0:00:12]}  Qb1+ {[%clk 0:00:35]} 47. Kg2 {[%clk 0:00:13]}  Kg5 {[%clk 0:00:36]} 48. Re5+ {[%clk 0:00:11]}  f5 {[%clk 0:00:36]} 49. Re3 {[%clk 0:00:11]}  Kf6 {[%clk 0:00:35]} 50. Rc3 {[%clk 0:00:08]}  Qb4 {[%clk 0:00:35]} 51. Rd3 {[%clk 0:00:06]}  Ke5 {[%clk 0:00:34]} 52. Rd5+ {[%clk 0:00:06]}  Ke6 {[%clk 0:00:34]} 53. Rd8 {[%clk 0:00:06]}  g5 {[%clk 0:00:33]} 54. Rd3 {[%clk 0:00:06]}  f4 {[%clk 0:00:31]} 55. gxf4 {[%clk 0:00:07]}  gxf4 {[%clk 0:00:32]} 56. Bd5+ {[%clk 0:00:07]}  Ke5 {[%clk 0:00:32]} 57. Rb3 {[%clk 0:00:06]}  Qd4 {[%clk 0:00:31]} 58. Bc6 {[%clk 0:00:06]}  Qb6 {[%clk 0:00:31]} 59. Kf3 {[%clk 0:00:05]}  Kf5 {[%clk 0:00:28]} 60. Rd3 {[%clk 0:00:05]}  Ke5 {[%clk 0:00:26]} 61. Rd5+ {[%clk 0:00:06]}  Ke6 {[%clk 0:00:26]} 62. Rd2 {[%clk 0:00:06]}  Ke5 {[%clk 0:00:26]} 63. Rd5+ {[%clk 0:00:06]}  Ke6 {[%clk 0:00:26]} 64. Rh5 {[%clk 0:00:06]}  Qd4 {[%clk 0:00:25]} 65. Rh2 {[%clk 0:00:05]}  Ke5 {[%clk 0:00:24]} 66. Rh5+ {[%clk 0:00:06]}  Ke6 {[%clk 0:00:25]} 67. Rh6+ {[%clk 0:00:06]}  Ke5 {[%clk 0:00:25]} 68. Rh7 {[%clk 0:00:05]}  Qd3+ {[%clk 0:00:23]} 69. Kg2 {[%clk 0:00:04]}  Qxh7 {[%clk 0:00:24]} 70. b6 {[%clk 0:00:04]}  Qg6+ {[%clk 0:00:24]} 71. Kf3 {[%clk 0:00:05]}  Qxc6+ {[%clk 0:00:25]} 72. Kg4 {[%clk 0:00:00]}  Qxb6 {[%clk 0:00:25]} 0-1

[Event "December 19 Early 2023"]
[Site "https://www.chess.com"]
[Date "2023.12.19"]
[Round "2"]
[White "Yaran, Siar"]
[Black "Shishkov, Andrei"]
[Result "1-0"]
[Board "93"]
[TimeControl "180+1"]
[WhiteFideId "6323006"]
[BlackFideId "4500563"]
[WhiteElo "2191"]
[BlackElo "2241"]
[WhiteTeam "TUR"]
[BlackTeam "EST"]
[WhiteClock "0:00:04"]
[BlackClock "0:00:00"]

1. Nf3 {[%clk 0:03:00]}  Nf6 {[%clk 0:02:59]} 2. c4 {[%clk 0:03:00]}  e6 {[%clk 0:02:59]} 3. g3 {[%clk 0:02:59]}  d5 {[%clk 0:02:59]} 4. Bg2 {[%clk 0:02:59]}  dxc4 {[%clk 0:02:59]} 5. O-O {[%clk 0:02:58]}  a6 {[%clk 0:02:58]} 6. a4 {[%clk 0:02:57]}  c5 {[%clk 0:02:54]} 7. Na3 {[%clk 0:02:56]}  b6 {[%clk 0:02:49]} 8. Nxc4 {[%clk 0:02:55]}  Bb7 {[%clk 0:02:49]} 9. d4 {[%clk 0:02:47]}  Nbd7 {[%clk 0:02:49]} 10. Be3 {[%clk 0:02:27]}  Nd5 {[%clk 0:02:43]} 11. Bg5 {[%clk 0:02:23]}  f6 {[%clk 0:02:38]} 12. e4 {[%clk 0:02:00]}  fxg5 {[%clk 0:02:17]} 13. exd5 {[%clk 0:02:00]}  Bxd5 {[%clk 0:02:18]} 14. Ne3 {[%clk 0:01:58]}  Be7 {[%clk 0:02:11]} 15. Nxd5 {[%clk 0:01:55]}  exd5 {[%clk 0:02:12]} 16. dxc5 {[%clk 0:01:47]}  Nxc5 {[%clk 0:02:11]} 17. Ne5 {[%clk 0:01:46]}  Qd6 {[%clk 0:02:04]} 18. Re1 {[%clk 0:01:32]}  Ne4 {[%clk 0:01:57]} 19. Nc4 {[%clk 0:01:01]}  dxc4 {[%clk 0:01:29]} 20. Qxd6 {[%clk 0:00:58]}  Bxd6 {[%clk 0:01:26]} 21. Bxe4 {[%clk 0:00:44]}  O-O-O {[%clk 0:01:22]} 22. Rec1 {[%clk 0:00:38]}  Bc5 {[%clk 0:01:04]} 23. Rxc4 {[%clk 0:00:33]}  a5 {[%clk 0:01:03]} 24. Rac1 {[%clk 0:00:24]}  Kb8 {[%clk 0:00:34]} 25. Rxc5 {[%clk 0:00:23]}  bxc5 {[%clk 0:00:35]} 26. Rxc5 {[%clk 0:00:23]}  Rd4 {[%clk 0:00:27]} 27. Rb5+ {[%clk 0:00:17]}  Kc7 {[%clk 0:00:27]} 28. f3 {[%clk 0:00:17]}  g4 {[%clk 0:00:17]} 29. Rxa5 {[%clk 0:00:15]}  gxf3 {[%clk 0:00:15]} 30. Bxf3 {[%clk 0:00:15]}  Rd2 {[%clk 0:00:12]} 31. Ra7+ {[%clk 0:00:11]}  Kd6 {[%clk 0:00:10]} 32. Bg4 {[%clk 0:00:09]}  Rxb2 {[%clk 0:00:08]} 33. Rxg7 {[%clk 0:00:07]}  h5 {[%clk 0:00:08]} 34. Bf3 {[%clk 0:00:04]}  Rc8 {[%clk 0:00:07]} 35. Rg6+ {[%clk 0:00:03]}  Ke5 {[%clk 0:00:06]} 36. Rg5+ {[%clk 0:00:02]}  Kd4 {[%clk 0:00:06]} 37. Rd5+ {[%clk 0:00:02]}  Ke3 {[%clk 0:00:06]} 38. Bg2 {[%clk 0:00:02]}  Rc1+ {[%clk 0:00:05]} 39. Bf1 {[%clk 0:00:03]}  Rbb1 {[%clk 0:00:04]} 40. Rf5 {[%clk 0:00:03]}  Ra1 {[%clk 0:00:00]} 41. Kg2 {[%clk 0:00:04]} 1-0

[Event "December 19 Early 2023"]
[Site "https://www.chess.com"]
[Date "2023.12.19"]
[Round "2"]
[White "Uritsky, Yonathan"]
[Black "Hua, Lefong"]
[Result "0-1"]
[Board "97"]
[TimeControl "180+1"]
[WhiteFideId "2825651"]
[BlackFideId "2602253"]
[WhiteElo "2168"]
[BlackElo "2693"]
[WhiteTeam "ISR"]
[BlackTeam "CAN"]
[WhiteClock "0:00:08"]
[BlackClock "0:01:17"]

1. Nf3 {[%clk 0:03:00]}  Nf6 {[%clk 0:03:00]} 2. g3 {[%clk 0:02:58]}  g6 {[%clk 0:03:00]} 3. Bg2 {[%clk 0:02:56]}  Bg7 {[%clk 0:03:01]} 4. O-O {[%clk 0:02:57]}  O-O {[%clk 0:03:01]} 5. c4 {[%clk 0:02:56]}  c5 {[%clk 0:03:02]} 6. Nc3 {[%clk 0:02:56]}  Nc6 {[%clk 0:03:02]} 7. d4 {[%clk 0:02:57]}  d6 {[%clk 0:03:02]} 8. d5 {[%clk 0:02:57]}  Na5 {[%clk 0:03:02]} 9. Nd2 {[%clk 0:02:56]}  a6 {[%clk 0:03:02]} 10. Rb1 {[%clk 0:02:55]}  e6 {[%clk 0:03:01]} 11. a3 {[%clk 0:02:51]}  exd5 {[%clk 0:02:58]} 12. cxd5 {[%clk 0:02:52]}  b5 {[%clk 0:02:54]} 13. b4 {[%clk 0:02:50]}  cxb4 {[%clk 0:02:51]} 14. axb4 {[%clk 0:02:51]}  Nc4 {[%clk 0:02:50]} 15. Nxc4 {[%clk 0:02:49]}  bxc4 {[%clk 0:02:51]} 16. e4 {[%clk 0:02:34]}  Nd7 {[%clk 0:02:47]} 17. Bd2 {[%clk 0:02:12]}  Ne5 {[%clk 0:02:38]} 18. Qc2 {[%clk 0:01:59]}  Rb8 {[%clk 0:02:33]} 19. Ne2 {[%clk 0:01:56]}  Bd7 {[%clk 0:02:27]} 20. Bc3 {[%clk 0:01:25]}  Bb5 {[%clk 0:02:19]} 21. Nd4 {[%clk 0:01:13]}  Qb6 {[%clk 0:02:16]} 22. Kh1 {[%clk 0:01:04]}  Nd3 {[%clk 0:02:02]} 23. Nxb5 {[%clk 0:01:02]}  axb5 {[%clk 0:02:02]} 24. Bxg7 {[%clk 0:00:56]}  Kxg7 {[%clk 0:02:03]} 25. Bf3 {[%clk 0:00:53]}  Rfe8 {[%clk 0:01:55]} 26. Kg2 {[%clk 0:00:51]}  Qd4 {[%clk 0:01:53]} 27. Ra1 {[%clk 0:00:41]}  Nxb4 {[%clk 0:01:46]} 28. Qe2 {[%clk 0:00:36]}  Nd3 {[%clk 0:01:38]} 29. Rfd1 {[%clk 0:00:34]}  Qe5 {[%clk 0:01:29]} 30. Qe3 {[%clk 0:00:32]}  Nc5 {[%clk 0:01:28]} 31. Ra7 {[%clk 0:00:30]}  Re7 {[%clk 0:01:22]} 32. Rda1 {[%clk 0:00:22]}  Rbe8 {[%clk 0:01:19]} 33. R7a5 {[%clk 0:00:08]}  Nb3 {[%clk 0:01:17]} 0-1

[Event "December 19 Early 2023"]
[Site "https://www.chess.com"]
[Date "2023.12.19"]
[Round "2"]
[White "Gutierrez Olivares, Daniel"]
[Black "JonaszBaum"]
[Result "0-1"]
[Board "99"]
[TimeControl "180+1"]
[WhiteFideId "2264005"]
[WhiteElo "2317"]
[BlackElo "2686"]
[WhiteTeam "ESP"]
[WhiteClock "0:00:00"]
[BlackClock "0:00:11"]

1. Nf3 {[%clk 0:03:00]}  c5 {[%clk 0:02:58]} 2. g3 {[%clk 0:03:00]}  Nc6 {[%clk 0:02:58]} 3. Bg2 {[%clk 0:02:58]}  e5 {[%clk 0:02:57]} 4. c4 {[%clk 0:02:45]}  d6 {[%clk 0:02:56]} 5. Nc3 {[%clk 0:02:41]}  g6 {[%clk 0:02:56]} 6. O-O {[%clk 0:02:41]}  Bg7 {[%clk 0:02:57]} 7. b3 {[%clk 0:02:41]}  Nge7 {[%clk 0:02:54]} 8. Bb2 {[%clk 0:02:42]}  h6 {[%clk 0:02:46]} 9. e3 {[%clk 0:02:36]}  f5 {[%clk 0:02:29]} 10. d3 {[%clk 0:02:32]}  O-O {[%clk 0:02:25]} 11. a3 {[%clk 0:02:28]}  g5 {[%clk 0:02:15]} 12. Qc2 {[%clk 0:02:10]}  Ng6 {[%clk 0:02:09]} 13. Rad1 {[%clk 0:01:56]}  g4 {[%clk 0:02:05]} 14. Nd2 {[%clk 0:01:51]}  h5 {[%clk 0:02:06]} 15. Na2 {[%clk 0:01:36]}  h4 {[%clk 0:02:04]} 16. b4 {[%clk 0:01:33]}  Kh7 {[%clk 0:01:48]} 17. b5 {[%clk 0:01:21]}  Nce7 {[%clk 0:01:42]} 18. f4 {[%clk 0:01:17]}  Be6 {[%clk 0:01:29]} 19. Nc3 {[%clk 0:01:02]}  Rb8 {[%clk 0:01:10]} 20. Nd5 {[%clk 0:00:56]}  h3 {[%clk 0:01:05]} 21. Bh1 {[%clk 0:00:53]}  b6 {[%clk 0:01:05]} 22. a4 {[%clk 0:00:48]}  Bg8 {[%clk 0:01:02]} 23. Rde1 {[%clk 0:00:47]}  Nxd5 {[%clk 0:01:00]} 24. cxd5 {[%clk 0:00:48]}  Ne7 {[%clk 0:00:53]} 25. e4 {[%clk 0:00:45]}  exf4 {[%clk 0:00:49]} 26. Rxf4 {[%clk 0:00:41]}  Bxb2 {[%clk 0:00:47]} 27. Qxb2 {[%clk 0:00:40]}  Ng6 {[%clk 0:00:48]} 28. Rxf5 {[%clk 0:00:36]}  Rxf5 {[%clk 0:00:46]} 29. exf5 {[%clk 0:00:37]}  Ne5 {[%clk 0:00:46]} 30. Be4 {[%clk 0:00:29]}  Qf6 {[%clk 0:00:38]} 31. Qc2 {[%clk 0:00:22]}  Re8 {[%clk 0:00:37]} 32. Rf1 {[%clk 0:00:21]}  Bf7 {[%clk 0:00:32]} 33. Rf4 {[%clk 0:00:21]}  Kg7 {[%clk 0:00:27]} 34. Nf1 {[%clk 0:00:20]}  c4 {[%clk 0:00:22]} 35. dxc4 {[%clk 0:00:18]}  Rc8 {[%clk 0:00:20]} 36. Ne3 {[%clk 0:00:16]}  Nxc4 {[%clk 0:00:17]} 37. Rxg4+ {[%clk 0:00:12]}  Kf8 {[%clk 0:00:17]} 38. Nxc4 {[%clk 0:00:12]}  Qd4+ {[%clk 0:00:16]} 39. Qf2 {[%clk 0:00:05]}  Qxc4 {[%clk 0:00:12]} 40. f6 {[%clk 0:00:02]}  Qc1+ {[%clk 0:00:11]} 41. Qf1 {[%clk 0:00:02]}  Qe3+ {[%clk 0:00:12]} 42. Kh1 {[%clk 0:00:01]}  Rc1 {[%clk 0:00:12]} 43. Bd3 {[%clk 0:00:00]}  Bxd5+ {[%clk 0:00:11]} 0-1

[Event "December 19 Early 2023"]
[Site "https://www.chess.com"]
[Date "2023.12.19"]
[Round "2"]
[White "Shohat, Yotam"]
[Black "Wu, Derek"]
[Result "1-0"]
[Board "103"]
[TimeControl "180+1"]
[WhiteFideId "2813955"]
[BlackFideId "30914558"]
[WhiteElo "2226"]
[BlackElo "2211"]
[WhiteTeam "ISR"]
[BlackTeam "USA"]
[WhiteClock "0:00:30"]
[BlackClock "0:00:06"]

1. e4 {[%clk 0:03:00]}  e6 {[%clk 0:02:59]} 2. d4 {[%clk 0:03:00]}  d5 {[%clk 0:03:00]} 3. Nc3 {[%clk 0:03:01]}  Be7 {[%clk 0:02:55]} 4. a3 {[%clk 0:02:59]}  Nf6 {[%clk 0:02:51]} 5. e5 {[%clk 0:02:59]}  Nfd7 {[%clk 0:02:52]} 6. f4 {[%clk 0:02:59]}  c5 {[%clk 0:02:51]} 7. Nf3 {[%clk 0:02:59]}  Nc6 {[%clk 0:02:51]} 8. Be3 {[%clk 0:03:00]}  O-O {[%clk 0:02:46]} 9. Qd2 {[%clk 0:02:56]}  a6 {[%clk 0:02:39]} 10. Be2 {[%clk 0:02:49]}  b5 {[%clk 0:02:38]} 11. O-O {[%clk 0:02:46]}  Bb7 {[%clk 0:02:36]} 12. Kh1 {[%clk 0:02:30]}  Qb6 {[%clk 0:02:30]} 13. Nd1 {[%clk 0:02:26]}  cxd4 {[%clk 0:02:25]} 14. Nxd4 {[%clk 0:02:27]}  Nxd4 {[%clk 0:02:18]} 15. Bxd4 {[%clk 0:02:27]}  Bc5 {[%clk 0:02:19]} 16. c3 {[%clk 0:02:25]}  f6 {[%clk 0:02:10]} 17. exf6 {[%clk 0:02:01]}  Nxf6 {[%clk 0:02:05]} 18. Nf2 {[%clk 0:01:53]}  Rac8 {[%clk 0:01:46]} 19. Rae1 {[%clk 0:01:52]}  a5 {[%clk 0:01:36]} 20. Bd3 {[%clk 0:01:41]}  Bxd4 {[%clk 0:01:27]} 21. cxd4 {[%clk 0:01:41]}  b4 {[%clk 0:01:24]} 22. Nh3 {[%clk 0:01:28]}  h6 {[%clk 0:01:10]} 23. Qe3 {[%clk 0:01:27]}  Ne4 {[%clk 0:01:08]} 24. Nf2 {[%clk 0:01:14]}  Rfd8 {[%clk 0:00:43]} 25. Nxe4 {[%clk 0:00:57]}  dxe4 {[%clk 0:00:44]} 26. Bxe4 {[%clk 0:00:58]}  Bxe4 {[%clk 0:00:45]} 27. Qxe4 {[%clk 0:00:58]}  Rxd4 {[%clk 0:00:46]} 28. Qg6 {[%clk 0:00:52]}  Rd6 {[%clk 0:00:26]} 29. axb4 {[%clk 0:00:52]}  axb4 {[%clk 0:00:23]} 30. f5 {[%clk 0:00:46]}  exf5 {[%clk 0:00:20]} 31. Qxf5 {[%clk 0:00:47]}  Rcd8 {[%clk 0:00:18]} 32. Qf7+ {[%clk 0:00:34]}  Kh8 {[%clk 0:00:17]} 33. Re7 {[%clk 0:00:32]}  Rg6 {[%clk 0:00:16]} 34. Re8+ {[%clk 0:00:29]}  Rxe8 {[%clk 0:00:14]} 35. Qxe8+ {[%clk 0:00:29]}  Kh7 {[%clk 0:00:15]} 36. Rf8 {[%clk 0:00:30]}  Qe6 {[%clk 0:00:06]} 37. Rh8# {[%clk 0:00:30]} 1-0